fUSD/lending_fUSD_20241008
["ID","MTS","AMOUNT","RATE_DAILY","PERIOD"]
[340040005,1728372631917,-2261.75,0.00010306,2]
[340040006,1728372631960,-5853.03008476,0.00010306,2]
[340040007,1728372632114,-716.18874666,0.00010306,2]
[340040008,1728372632126,-1429.9999999,0.00010306,2]
[340040010,1728372638138,-5477.84373797,0.00010306,2]
[340040011,1728372638150,-559.12249875,0.00010306,2]
[340040012,1728372638214,-29.82364591,0.00010306,2]
[340040013,1728372638223,-250.0,0.00010308,2]
[340040014,1728372638232,-225.86,0.00010333,2]
[340040015,1728372638241,-722.16573347,0.0001045,2]
[340040016,1728372638250,-685.62,0.00010519,2]
[340040017,1728372638259,-3728.0,0.00010557,2]
[340040018,1728372638268,-22556.8230005,0.0001088,2]
[340040019,1728372638277,-150.0,0.00010898,2]
[340040020,1728372638287,-499.99,0.00010898,2]
[340040021,1728372638296,-217.0611258,0.00010898,2]
[340040022,1728372638305,-8691.05126952,0.00010899,2]
[340040023,1728372638314,-8691.05126945,0.00010899,2]
[340040024,1728372638323,-8691.05126945,0.00010899,2]
[340040025,1728372638335,-8691.05126945,0.00010899,2]
[340040026,1728372638345,-8691.05126945,0.00010899,2]
[340040027,1728372638354,-8691.05126945,0.00010899,2]
[340040028,1728372638363,-8691.05126945,0.00010899,2]
[340040029,1728372638373,-8691.05126945,0.00010899,2]
[340040030,1728372638382,-8691.05126945,0.00010899,2]
[340040031,1728372638391,-167.49071049,0.000109,2]
[340040032,1728372638400,-187.60624686,0.000109,2]
[340040033,1728372638410,-8691.05126945,0.000109,2]
[340040034,1728372638419,-1129.0,0.000109,2]
[340040035,1728372638428,-159.71,0.00010959,2]
[340040036,1728372638437,-603.52,0.00010959,2]
[340040037,1728372638446,-250.0,0.00010959,2]
[340040038,1728372638544,-1472.92,0.00010959,2]
[340040039,1728372638557,-401.207,0.00010963,2]
[340040040,1728372638567,-500.0,0.00010989,2]
[340040041,1728372638576,-463.36258036,0.00010989,2]
[340040042,1728372638585,-500.0,0.00010989,2]
[340040043,1728372638597,-500.0,0.00010989,2]
[340040044,1728372638606,-500.0,0.00010989,2]
[340040045,1728372638615,-500.0,0.00010989,2]
[340040046,1728372638625,-500.0,0.00010989,2]
[340040047,1728372638634,-385.19283329,0.00010989,2]
[340040048,1728372638643,-246611.61738425,0.0001099,2]
[340040049,1728372638653,-39893.067,0.0001099,2]
[340040050,1728372638662,-8156.76696948,0.0001099,2]
[340040051,1728372638673,-6407.8,0.0001099,2]
[340040061,1728372639938,-410.07067719,0.0001089,2]
[340040062,1728372640066,-2089.92932281,0.0001089,2]
[340040063,1728372640075,-105166.46840484,0.0001099,2]
[340040064,1728372640085,-561.83581059,0.0001099,2]
[340040065,1728372640094,-561.83581059,0.0001099,2]
[340040066,1728372640103,-561.83581059,0.0001099,2]
[340040067,1728372640112,-159.61986477,0.00010999,2]
[340040068,1728372640122,-564.0,0.00011,2]
[340040069,1728372640131,-541514.6000565,0.00011,2]
[340040070,1728372640139,-184027.609807,0.00011,2]
[340040071,1728372640153,-80064.02774154,0.00011,2]
[340040072,1728372640284,-206145.30083833,0.00011,2]
[340040073,1728372640294,-5499971.3902146,0.00011,2]
[340040096,1728372643121,-65811.01932884,0.00011,2]
[340040103,1728372645998,-1557.73531395,0.00010999,2]
[340040104,1728372646010,-262.53999552,0.00010999,2]
[340040105,1728372646021,-265.12497016,0.00010999,2]
[340040106,1728372646033,-404.4253075,0.00010999,2]
[340040107,1728372646058,-876.86241287,0.00010999,2]
[340040108,1728372646067,-369.89454118,0.00011,2]
[340040109,1728372712872,660.72,9.765e-05,2]
[340040110,1728372808568,500.0,9.687e-05,2]
[340040111,1728373213351,627.68,9.632e-05,2]
[340040112,1728373406457,500.0,9.555e-05,2]
[340040117,1728373824759,596.29,9.311e-05,2]
[340040132,1728373831964,-283.25,0.00010726,2]
[340040135,1728373831979,-300.0,0.00010779,2]
[340040137,1728373831990,-1125.08727203,0.0001078,2]
[340040139,1728373831999,-257.22580388,0.0001078,2]
[340040141,1728373832011,-752.27643654,0.0001078,2]
[340040143,1728373832021,-783.53505906,0.0001078,2]
[340040145,1728373832127,-377.18156299,0.0001078,2]
[340040146,1728373832137,-1816.4272,0.000109,2]
[340040147,1728373832147,-950.4337,0.000109,2]
[340040148,1728373832156,-484.01800005,0.000109,2]
[340040149,1728373832165,-154.15,0.00010959,2]
[340040150,1728373832175,-163.89,0.00010959,2]
[340040151,1728373832184,-506.3302872,0.00010973,2]
[340040152,1728373832193,-178.05986011,0.00010973,2]
[340040153,1728373832202,-150.0,0.00010999,2]
[340040154,1728373832211,-269.6349833,0.00010999,2]
[340040155,1728373832221,-384.81806448,0.00010999,2]
[340040156,1728373832233,-507.0,0.00011,2]
[340040157,1728373832243,-2757.38927708,0.00011,2]
[340040158,1728373832255,-722.16573347,0.00011,2]
[340040159,1728373832266,-8971.18423279,0.00011,2]
[340040160,1728373832278,-397.7418011,0.00011,2]
[340040161,1728373832290,-1029.07753147,0.00011,2]
[340040175,1728373838182,-648.78490897,0.00011,2]
[340040176,1728373838194,-13391.24677579,0.00011,2]
[340040547,1728373842983,-1611.84173875,0.00011,2]
[340040549,1728373843090,-65811.01932884,0.00011,2]
[340040550,1728373843254,-4050.345,0.00011,2]
[340040551,1728373843343,-0.58808491,0.00011,2]
[340040556,1728374319919,566.47,8.948e-05,2]
[340040558,1728374530643,-300.0,0.00010835,2]
[340040559,1728374530664,-150.66,0.00010836,2]
[340040560,1728374530688,-500.0,0.00010836,2]
[340040561,1728374530710,-500.0,0.00010836,2]
[340040562,1728374530730,-500.0,0.00010836,2]
[340040563,1728374530751,-500.0,0.00010836,2]
[340040564,1728374530868,-170.4,0.00010858,2]
[340040565,1728374530891,-161.33933335,0.000109,2]
[340040566,1728374530913,-165.76218273,0.000109,2]
[340040567,1728374530935,-157.59,0.00010959,2]
[340040568,1728374530956,-247.17,0.00010959,2]
[340040569,1728374530978,-159.71,0.00010959,2]
[340040570,1728374530999,-205.98,0.00010959,2]
[340040571,1728374531271,-171.65,0.00010959,2]
[340040572,1728374531295,-858.26,0.00010959,2]
[340040573,1728374531316,-320.965,0.00010999,2]
[340040574,1728374531337,-150.0,0.00010999,2]
[340040575,1728374531358,-198.68538684,0.00010999,2]
[340040576,1728374531382,-14581.82809708,0.00011,2]
[340040578,1728374683267,-6000.0,0.00010877,2]
[340040579,1728374821576,607.32,8.965e-05,2]
[340040585,1728375032083,-818.95666546,0.00010786,2]
[340040586,1728375032137,-181.04333454,0.00010786,2]
[340040587,1728375032247,-174.69,0.00010868,2]
[340040588,1728375032257,-250.0,0.00010868,2]
[340040589,1728375032267,-7130.64322325,0.00010877,2]
[340040590,1728375032278,-266.95294903,0.00010877,2]
[340040591,1728375032290,-415.09721781,0.00010877,2]
[340040592,1728375032301,-308.807424,0.00010877,2]
[340040593,1728375032311,-1775.65369597,0.00010877,2]
[340040594,1728375032323,-1501.46659865,0.00010877,2]
[340040595,1728375032333,-4328.91690403,0.00010877,2]
[340040596,1728375032344,-496.3329089,0.00010877,2]
[340040597,1728375032355,-269.0000005,0.00010877,2]
[340040598,1728375032366,-1407.12907786,0.00010877,2]
[340040599,1728375032375,-180.68,0.00010881,2]
[340040600,1728375032383,-174.69,0.00010895,2]
[340040601,1728375032392,-165.76218271,0.000109,2]
[340040602,1728375032401,-224.7625158,0.000109,2]
[340040603,1728375032410,-174.69,0.00010922,2]
[340040604,1728375032419,-665.82,0.00010959,2]
[340040605,1728375032428,-160.83577745,0.00010976,2]
[340040606,1728375032438,-150.0,0.00010999,2]
[340040607,1728375032446,-3798.64532254,0.00011,2]
[340040608,1728375032457,-3350.40350675,0.00011,2]
[340040609,1728375032468,-745.31368766,0.00011,2]
[340040610,1728375032479,-818.15190406,0.00011,2]
[340040611,1728375032490,-15581.435,0.00011,2]
[340040613,1728375038240,-504.81156393,0.00011,2]
[340040614,1728375038251,-31253.03540949,0.00011,2]
[340040615,1728375038400,-1655222.40765741,0.00011,2]
[340040616,1728375038506,-1000.0,0.00011,2]
[340040617,1728375038517,-29050.44292164,0.00011,2]
[340040618,1728375038614,-1466.63911827,0.00011,2]
[340040619,1728375038626,-372137.16793114,0.00011,2]
[340040620,1728375038637,-304.56000055,0.00011,2]
[340040621,1728375038649,-2944.34240302,0.00011,2]
[340040622,1728375038660,-9101.3781579,0.00011,2]
[340040623,1728375038672,-8693.51986952,0.00011,2]
[340040624,1728375038684,-1381.24087936,0.00011,2]
[340040625,1728375038696,-564.9145408,0.00011,2]
[340040626,1728375038708,-35180.22168578,0.00011,2]
[340040627,1728375038723,-373.72250086,0.00011,2]
[340040652,1728375041343,-1247.656956,0.00011,2]
[340040779,1728375043198,-3751.17676835,0.00011,2]
[340040781,1728375043209,-65811.01932884,0.00011,2]
[340040784,1728375043387,-635.21123001,0.00011,2]
[340040785,1728375043467,-21265.68264158,0.00011,2]
[340040786,1728375043479,-423.97074858,0.00011,2]
[340040798,1728375046477,-23322.3369633,0.00011,2]
[340040804,1728375096508,500.0,8.22e-05,2]
[340040805,1728375102678,600.0,8.22e-05,2]
[340040806,1728375104728,600.0,9.59e-05,2]
[340040807,1728375208895,500.0,9.513e-05,2]
[340040808,1728375324820,594.69,8.613e-05,2]
[340040809,1728375589277,751.36,9.662e-05,2]
[340040810,1728375666881,888.75166088,0.00010225,2]
[340040811,1728375668141,552.39,9.65e-05,2]
[340040812,1728375685815,19238.65,9.64e-05,2]
[340040813,1728375710416,250.0,9.635e-05,2]
[340040814,1728375722349,10000.0,0.00021,90]
[340040815,1728375764257,550.67,9.643e-05,2]
[340040816,1728375781165,6131.0,0.000105,3]
[340040817,1728375806986,500.0,9.566e-05,2]
[340040818,1728375917501,676.14,8.219e-05,2]
[340040819,1728375945566,170.4,9.601e-05,2]
[340040823,1728375970043,250.0,9.607e-05,2]
[340040824,1728376009268,800.0,9.598e-05,2]
[340040825,1728376115240,375.68,9.536e-05,2]
[340040827,1728376187502,980.78,9.511e-05,2]
[340040836,1728376227432,250.0,9.525e-05,2]
[340040840,1728376232347,-614.4964,0.00010272,2]
[340040841,1728376232357,-222.7,0.00010323,2]
[340040842,1728376232366,-68.67739257,0.00010326,2]
[340040843,1728376232404,-154.02260743,0.00010326,2]
[340040844,1728376232414,-222.7,0.00010328,2]
[340040845,1728376232423,-467.9133604,0.00010331,2]
[340040846,1728376232569,-1405.71041485,0.00010331,2]
[340040847,1728376232579,-222.7,0.00010331,2]
[340040848,1728376232588,-222.7,0.00010334,2]
[340040849,1728376232597,-222.7,0.00010336,2]
[340040850,1728376232606,-144.68605346,0.00010339,2]
[340040851,1728376232618,-78.01394654,0.00010339,2]
[340040852,1728376232627,-222.7,0.00010342,2]
[340040853,1728376232636,-299.99,0.00010342,2]
[340040854,1728376232645,-222.7,0.00010345,2]
[340040855,1728376232654,-499.99,0.00010345,2]
[340040856,1728376232663,-222.7,0.00010347,2]
[340040857,1728376232674,-222.7,0.0001035,2]
[340040858,1728376232683,-222.7,0.00010353,2]
[340040859,1728376232692,-222.7,0.00010355,2]
[340040860,1728376232701,-222.7,0.00010358,2]
[340040861,1728376232710,-222.7,0.00010361,2]
[340040862,1728376232718,-222.7,0.00010364,2]
[340040863,1728376232727,-222.7,0.00010366,2]
[340040864,1728376232736,-222.7,0.00010369,2]
[340040865,1728376232745,-222.7,0.00010372,2]
[340040866,1728376232754,-110.57658842,0.00010374,2]
[340040867,1728376232765,-112.12341158,0.00010374,2]
[340040868,1728376232774,-149.49424243,0.0001045,2]
[340040869,1728376238932,-975.45215907,0.0001045,2]
[340040870,1728376238942,-24.54784093,0.00010455,2]
[340040871,1728376238953,-651.59215907,0.00010455,2]
[340040872,1728376238963,-172.34,0.00010493,2]
[340040873,1728376238973,-150.0,0.00010493,2]
[340040874,1728376238982,-68.89739746,0.000105,2]
[340040922,1728376240664,-17588.60619722,0.000105,2]
[340040950,1728376243344,-3932.95846468,0.000105,2]
[340040957,1728376243402,-500.0,0.000105,2]
[340040961,1728376243564,-759.4936,0.000105,2]
[340040962,1728376243576,-716.4,0.000105,2]
[340040963,1728376243588,-442.038004,0.000105,2]
[340040964,1728376243621,-991.60633664,0.000105,2]
[340040965,1728376243630,-1564.434,0.000105,2]
[340040966,1728376243639,-200.0,0.00010531,2]
[340040967,1728376243648,-800.0,0.00010797,2]
[340040968,1728376243657,-150.21922956,0.00010799,2]
[340040969,1728376243666,-646.87470985,0.00010835,2]
[340040970,1728376243676,-150.21922956,0.0001085,2]
[340040971,1728376243685,-552.39,0.00010856,2]
[340040972,1728376243694,-500.0,0.00010873,2]
[340040973,1728376243703,-4601.13304472,0.0001088,2]
[340040974,1728376243715,-279.92356222,0.0001088,2]
[340040975,1728376243730,-9246.33797304,0.0001088,2]
[340040979,1728376246364,-118270.34986427,0.0001088,2]
[340041020,1728376247471,-3711.22716408,0.0001088,2]
[340041024,1728376511981,250.0,0.00010215,2]
[340041025,1728376524472,652.8,8.336e-05,2]
[340041026,1728376546716,249.81142769,0.00014,10]
[340041027,1728376723348,250.0,0.00010005,2]
[340041028,1728376747039,137039.55210246,0.0001,2]
[340041029,1728376862056,359.17,0.0001004,2]
[340041030,1728376875356,249.59,0.00010098,2]
[340041031,1728376889527,1423.38,0.00010068,2]
[340041032,1728377009862,200.0,0.00010068,2]
[340041033,1728377040107,480.0,0.00010028,2]
[340041034,1728377059578,677.55,8.219e-05,2]
[340041035,1728377102594,250.0,0.00010088,2]
[340041036,1728377240736,250.0,0.00010071,2]
[340041037,1728377261399,2551.72,0.00010045,2]
[340041038,1728377261823,2551.72,0.00010047,2]
[340041039,1728377261962,2551.72,0.0001005,2]
[340041040,1728377262071,2551.72,0.00010053,2]
[340041041,1728377262301,2551.72,0.00010055,2]
[340041042,1728377262514,2551.72,0.00010058,2]
[340041043,1728377262716,2551.72,0.0001006,2]
[340041044,1728377262934,2551.72,0.00010063,2]
[340041045,1728377263147,2551.72,0.00010066,2]
[340041046,1728377263372,2551.72,0.00010068,2]
[340041047,1728377263572,2551.72,0.00010071,2]
[340041048,1728377263772,2551.72,0.00010074,2]
[340041049,1728377263972,2551.72,0.00010076,2]
[340041050,1728377264184,2551.72,0.00010079,2]
[340041051,1728377264634,2551.72,0.00010081,2]
[340041052,1728377264853,2551.72,0.00010084,2]
[340041053,1728377265074,2551.72,0.00010087,2]
[340041054,1728377265301,2551.72,0.00010089,2]
[340041055,1728377265552,2551.72,0.00010092,2]
[340041056,1728377265755,2551.72,0.00010095,2]
[340041064,1728377431511,-387.69311724,0.00010274,2]
[340041065,1728377431521,-150.5980889,0.00010274,2]
[340041066,1728377431568,-369.4019111,0.00010274,2]
[340041067,1728377431578,-677.55,0.00010482,2]
[340041068,1728377431588,-153.0480889,0.00010499,2]
[340041069,1728377431624,-146.9519111,0.00010499,2]
[340041070,1728377431633,-15482.25856643,0.000105,2]
[340041071,1728377431645,-620.85955159,0.000105,2]
[340041076,1728377437903,-457.2,0.000105,2]
[340041077,1728377437915,-3439.68188198,0.000105,2]
[340041078,1728377437924,-323.527,0.000106,2]
[340041079,1728377437933,-150.0,0.00010767,2]
[340041080,1728377437942,-293.9926,0.0001078,2]
[340041081,1728377437951,-9347.3202,0.0001078,2]
[340041082,1728377437960,-500.0,0.00010793,2]
[340041083,1728377437969,-150.99,0.00010799,2]
[340041084,1728377437978,-499.99,0.00010799,2]
[340041085,1728377437988,-171.48637457,0.0001087,2]
[340041086,1728377437998,-1405.98,0.00010873,2]
[340041087,1728377438007,-150.0,0.00010879,2]
[340041088,1728377438016,-14207.79473378,0.0001088,2]
[340041189,1728377439538,-312.81202174,0.0001088,2]
[340041190,1728377439549,-605.87220144,0.0001088,2]
[340041191,1728377439560,-266.56,0.0001088,2]
[340041192,1728377439647,-2271.4742215,0.0001088,2]
[340041193,1728377439658,-505.2624392,0.0001088,2]
[340041194,1728377439704,-588.2445,0.0001088,2]
[340041195,1728377439715,-5228.57688134,0.0001088,2]
[340041196,1728377439726,-3929.38503299,0.0001088,2]
[340041197,1728377439740,-884.16644664,0.0001088,2]
[340041198,1728377439814,-3500.0,0.0001088,2]
[340041199,1728377439825,-1086.00001,0.0001088,2]
[340041200,1728377439836,-6058.74999999,0.0001088,2]
[340041201,1728377439871,-1600.65,0.0001088,2]
[340041202,1728377439882,-2805.89547685,0.0001088,2]
[340041203,1728377439892,-1641.30252,0.0001088,2]
[340041221,1728377442765,-1578.62846982,0.0001088,2]
[340041222,1728377442777,-506.1732825,0.0001088,2]
[340041223,1728377442832,-759.5749,0.0001088,2]
[340041224,1728377442843,-715.77,0.0001088,2]
[340041225,1728377442942,-13909.70808209,0.0001088,2]
[340041226,1728377442953,-490.45,0.0001088,2]
[340041227,1728377442964,-9117.48,0.0001088,2]
[340041228,1728377442999,-5630.95657849,0.0001088,2]
[340041229,1728377443056,-383.20020393,0.0001088,2]
[340041234,1728377445538,-4919.07120143,0.0001088,2]
[340041235,1728377445550,-729.12371714,0.0001088,2]
[340041236,1728377445600,-6156.78116443,0.0001088,2]
[340041237,1728377445611,-442.95207196,0.0001088,2]
[340041238,1728377445623,-955.347298,0.0001088,2]
[340041239,1728377445635,-1034.05360558,0.0001088,2]
[340041240,1728377445646,-453.46218221,0.0001088,2]
[340041241,1728377445657,-12100.0,0.0001088,2]
[340041242,1728377445669,-5884.21188928,0.0001088,2]
[340041243,1728377445716,-555.4346974,0.0001088,2]
[340041244,1728377445727,-740.40033588,0.0001088,2]
[340041245,1728377445773,-585.71,0.0001088,2]
[340041246,1728377445784,-939.883994,0.0001088,2]
[340041247,1728377445796,-1904.85498398,0.0001088,2]
[340041248,1728377445807,-1919.57705919,0.0001088,2]
[340041249,1728377445830,-1320.45,0.0001088,2]
[340041250,1728377445842,-1308.05021455,0.0001088,2]
[340041251,1728377445853,-1803.0972966,0.0001088,2]
[340041252,1728377445865,-1185.57,0.0001088,2]
[340041257,1728377551248,669.43,8.558e-05,2]
[340041258,1728377893034,250.0,0.00010176,2]
[340041259,1728378007744,-250.0,0.000103,2]
[340041260,1728378007769,-553.77,0.00010356,2]
[340041261,1728378007793,-200.0,0.00010522,2]
[340041262,1728378007817,-616.0,0.00010579,2]
[340041263,1728378007840,-500.0,0.00010793,2]
[340041264,1728378007864,-669.43,0.00010822,2]
[340041265,1728378007887,-150.21922956,0.00010859,2]
[340041266,1728378007910,-1000.0,0.00010879,2]
[340041267,1728378007933,-291.593,0.00010879,2]
[340041268,1728378007956,-300.0,0.00010879,2]
[340041269,1728378007979,-150.0,0.00010879,2]
[340041270,1728378008003,-195318.98777044,0.0001088,2]
[340041271,1728378058437,51746.0069329,0.0001,2]
[340041272,1728378088657,-7134.5501,0.0001078,2]
[340041273,1728378088685,-300.0,0.00010879,2]
[340041274,1728378088709,-92565.4499,0.0001088,2]
[340041275,1728378131149,-200.0,0.00010593,2]
[340041276,1728378131173,-300.0,0.00010879,2]
[340041277,1728378131196,-99500.0,0.0001088,2]
[340041278,1728378146175,629.58,8.568e-05,2]
[340041279,1728378456141,528.63167142,0.00010437,5]
[340041282,1728378631777,-250.0,0.00010378,2]
[340041283,1728378631787,-1000.0,0.00010437,2]
[340041284,1728378631796,-250.0,0.00010481,2]
[340041285,1728378631807,-179.58,0.00010486,2]
[340041286,1728378631818,-629.58,0.00010832,2]
[340041287,1728378631828,-149.57260135,0.00010873,2]
[340041288,1728378631943,-350.42739865,0.00010873,2]
[340041289,1728378631956,-291.00602614,0.00010873,2]
[340041290,1728378632000,-208.99397386,0.00010873,2]
[340041291,1728378632010,-150.0,0.00010879,2]
[340041292,1728378632020,-1857.81952195,0.0001088,2]
[340041294,1728378637716,-1488.87362106,0.0001088,2]
[340041295,1728378637728,-646.08003166,0.0001088,2]
[340041296,1728378637775,-28558.47548638,0.0001088,2]
[340041297,1728378637787,-2329.26690704,0.0001088,2]
[340041298,1728378637798,-518.62206885,0.0001088,2]
[340041299,1728378637814,-1168.70766274,0.0001088,2]
[340041300,1728378637826,-291.75471667,0.0001088,2]
[340041301,1728378637888,-779.61996354,0.0001088,2]
[340041302,1728378637901,-2827.40607705,0.0001088,2]
[340041303,1728378638001,-5686.33463656,0.0001088,2]
[340041304,1728378638056,-1879.83420149,0.0001088,2]
[340041305,1728378638068,-1943.69780579,0.0001088,2]
[340041306,1728378638080,-552.35428134,0.0001088,2]
[340041307,1728378638118,-771.26757877,0.0001088,2]
[340041309,1728378638130,-307.4777073,0.0001088,2]
[340041360,1728378639712,-39412.85223734,0.0001088,2]
[340041361,1728378639723,-2929.0557936,0.0001088,2]
[340041362,1728378639772,-964.35546878,0.0001088,2]
[340041363,1728378639783,-281.186742,0.0001088,2]
[340041364,1728378639794,-5511.00549854,0.0001088,2]
[340041365,1728378639835,-844.95247349,0.0001088,2]
[340041366,1728378639846,-1950.05512954,0.0001088,2]
[340041367,1728378639858,-4128.97177876,0.0001088,2]
[340041368,1728378639869,-377.63072068,0.0001088,2]
[340041369,1728378639880,-649.02,0.0001088,2]
[340041370,1728378639892,-31971.56757775,0.0001088,2]
[340041371,1728378639904,-62615.43498047,0.0001088,2]
[340041391,1728378642880,-447.3484677,0.0001088,2]
[340041392,1728378642892,-2826.0,0.0001088,2]
[340041393,1728378642937,-444.24425241,0.0001088,2]
[340041394,1728378643038,-9582.92793734,0.0001088,2]
[340041395,1728378645667,-286.63722524,0.0001088,2]
[340041396,1728378645726,-3351.56897786,0.0001088,2]
[340041397,1728378645933,-44760.57830407,0.0001088,2]
[340041398,1728378645944,-306.29185337,0.0001088,2]
[340041399,1728378645957,-1137.97982268,0.0001088,2]
[340041400,1728378645970,-2641.85,0.0001088,2]
[340041401,1728378772080,631.76,8.289e-05,2]
[340041402,1728378924932,600.0,8.876e-05,2]
[340041403,1728379020153,171.0,0.00010096,2]
[340041404,1728379083478,250.0,0.0001017,2]
[340041405,1728379150077,171.06,0.00010036,2]
[340041406,1728379161760,250.0,0.0001004,2]
[340041407,1728379199583,500.0,8.22e-05,2]
[340041408,1728379201191,500.0,9.59e-05,2]
[340041409,1728379228486,500.0,8.22e-05,2]
[340041410,1728379236117,500.0,0.00010164,2]
[340041411,1728379294239,641.78,8.298e-05,2]
[340041412,1728379427411,800.0,0.00010182,2]
[340041413,1728379521925,179.58,0.0001012,2]
[340041414,1728379522291,428.5,0.0001012,2]
[340041415,1728379530456,49317.45610859,0.000101,2]
[340041416,1728379537469,22000.0,9e-05,2]
[340041417,1728379556729,20111.41753122,6.94e-05,2]
[340041418,1728379582922,250.0,0.0001,2]
[340041419,1728379600509,166.73,0.00010011,2]
[340041420,1728379613591,504.39,0.00010028,2]
[340041421,1728379679126,443.01,0.00010116,2]
[340041423,1728379720798,2411.64511135,0.0001,2]
[340041436,1728379752383,250.0,0.00010078,2]
[340041450,1728379831973,-200.0,0.00010251,2]
[340041451,1728379831984,-307.8,0.00010503,2]
[340041452,1728379831993,-2189.3634484,0.000107,2]
[340041453,1728379832005,-403.6873416,0.000107,2]
[340041454,1728379832019,-52.64693845,0.00010779,2]
[340041455,1728379832035,-247.35306155,0.00010779,2]
[340041456,1728379832045,-18717.9484,0.0001078,2]
[340041457,1728379832054,-500.0,0.00010793,2]
[340041458,1728379832063,-1003.13141524,0.00010879,2]
[340041459,1728379832075,-299.45217015,0.00010879,2]
[340041460,1728379832084,-11904.18962852,0.00010879,2]
[340041461,1728379832094,-150.0,0.00010879,2]
[340041462,1728379832104,-200.0,0.0001088,2]
[340041463,1728379832113,-233.275,0.0001088,2]
[340041464,1728379832122,-499.99,0.0001088,2]
[340041465,1728379832132,-19709.4167912,0.0001088,2]
[340041466,1728379832141,-600.1155,0.0001089,2]
[340041467,1728379832151,-1597.339,0.0001089,2]
[340041469,1728379832160,-8381.0527,0.0001089,2]
[340041470,1728379832170,-1167.32862818,0.00010899,2]
[340041471,1728379832179,-510.0,0.000109,2]
[340041472,1728379832191,-159.85984811,0.000109,2]
[340041473,1728379832201,-158.24649877,0.000109,2]
[340041474,1728379832210,-167.49071049,0.000109,2]
[340041475,1728379832220,-161.03621254,0.000109,2]
[340041476,1728379832229,-433.05336868,0.000109,2]
[340041477,1728379832238,-150.21922956,0.000109,2]
[340041478,1728379832248,-396.47606515,0.000109,2]
[340041479,1728379832257,-997.41550701,0.000109,2]
[340041480,1728379832267,-167.21,0.00010959,2]
[340041481,1728379832276,-193.72,0.00010959,2]
[340041482,1728379832286,-159.09,0.00010959,2]
[340041483,1728379832295,-250.0,0.00010959,2]
[340041484,1728379832304,-873.99,0.00010959,2]
[340041485,1728379832314,-157.98,0.00010959,2]
[340041486,1728379832324,-73006.48,0.00010959,2]
[340041487,1728379832333,-775.36,0.00010959,2]
[340041488,1728379832343,-348.63,0.00010959,2]
[340041489,1728379832353,-500.0,0.0001096,2]
[340041490,1728379832362,-500.0,0.0001096,2]
[340041491,1728379832371,-500.0,0.00010973,2]
[340041492,1728379832381,-555.247,0.00010976,2]
[340041493,1728379832391,-1916.812,0.00010976,2]
[340041494,1728379832400,-812.0,0.00010976,2]
[340041495,1728379832409,-3134.216,0.00010976,2]
[340041496,1728379832419,-813.022,0.00010976,2]
[340041497,1728379832429,-150.0,0.00010976,2]
[340041498,1728379832444,-727.17,0.00010976,2]
[340041499,1728379832453,-250.0,0.00010988,2]
[340041500,1728379832545,-150.0,0.00010988,2]
[340041501,1728379832555,-152.688,0.00010988,2]
[340041502,1728379832564,-238.714,0.00010988,2]
[340041503,1728379832574,-150.0,0.00010988,2]
[340041504,1728379832583,-229.876,0.00010988,2]
[340041505,1728379832592,-263.107,0.00010988,2]
[340041506,1728379832602,-150.456,0.00010988,2]
[340041507,1728379832611,-281.157,0.00010988,2]
[340041508,1728379832620,-202.019,0.00010988,2]
[340041509,1728379832630,-201.044,0.00010988,2]
[340041510,1728379832639,-200.0,0.00010989,2]
[340041511,1728379832648,-500.0,0.00010989,2]
[340041512,1728379832658,-159.40408961,0.00010989,2]